[Event "Live Chess"]
[Site "Chess.com"]
[Date "2024.06.02"]
[Round "-"]
[White "booktrunk"]
[Black "Delacorta"]
[Result "1-0"]
[WhiteElo "1532"]
[BlackElo "1518"]
[TimeControl "300"]
[EndTime "22:44:20 PDT"]
[Termination "booktrunk won on time"]

1. d4 {[%clk 0:04:55.2]} 1... Nf6 {[%clk 0:04:57.5]} 2. Nc3 {[%clk 0:04:51.9]}
2... c6 {[%clk 0:04:53.8]} 3. e4 {[%clk 0:04:44.8]} 3... e6 {[%clk 0:04:45.8]}
4. e5 {[%clk 0:04:43.7]} 4... Nd5 {[%clk 0:04:44.9]} 5. Nxd5 {[%clk 0:04:42.8]}
5... cxd5 {[%clk 0:04:38.2]} 6. Nf3 {[%clk 0:04:41.6]} 6... Be7 {[%clk
0:04:30.9]} 7. Bd3 {[%clk 0:04:37.6]} 7... Nc6 {[%clk 0:04:29.7]} 8. c3 {[%clk
0:04:35.5]} 8... Qb6 {[%clk 0:04:28.3]} 9. Rb1 {[%clk 0:04:30.6]} 9... d6 {[%clk
0:04:27.1]} 10. exd6 {[%clk 0:04:28.3]} 10... Bxd6 {[%clk 0:04:25.6]} 11. O-O
{[%clk 0:04:26.7]} 11... Bd7 {[%clk 0:04:16.2]} 12. Re1 {[%clk 0:04:24.5]} 12...
O-O-O {[%clk 0:04:14.1]} 13. Be3 {[%clk 0:04:02.9]} 13... Qc7 {[%clk 0:04:00.5]}
14. g3 {[%clk 0:04:00.4]} 14... h5 {[%clk 0:03:56.1]} 15. Nh4 {[%clk 0:03:57.3]}
15... Rhg8 {[%clk 0:03:44.4]} 16. Qxh5 {[%clk 0:03:50.3]} 16... g5 {[%clk
0:03:42.3]} 17. Bxg5 {[%clk 0:03:46.7]} 17... Rh8 {[%clk 0:03:41.6]} 18. Qf3
{[%clk 0:03:37.1]} 18... Rdg8 {[%clk 0:03:39.8]} 19. Bf6 {[%clk 0:03:32]} 19...
Rxh4 {[%clk 0:03:36.8]} 20. Bxh4 {[%clk 0:03:29]} 20... Ne7 {[%clk 0:03:25.8]}
21. Bxe7 {[%clk 0:03:17.7]} 21... Bxe7 {[%clk 0:03:22.2]} 22. Qxf7 {[%clk
0:03:16.1]} 22... Qd8 {[%clk 0:03:18.6]} 23. Re3 {[%clk 0:02:14.7]} 23... Rf8
{[%clk 0:02:57]} 24. Qh5 {[%clk 0:02:09.9]} 24... Bg5 {[%clk 0:02:54.9]} 25. Re2
{[%clk 0:01:56.7]} 25... Rf3 {[%clk 0:02:24.6]} 26. Bc2 {[%clk 0:01:46.4]} 26...
Qf6 {[%clk 0:02:17.4]} 27. Rf1 {[%clk 0:01:31.9]} 27... Bb5 {[%clk 0:02:04]} 28.
Ree1 {[%clk 0:01:16.5]} 28... Bxf1 {[%clk 0:01:57.3]} 29. Rxf1 {[%clk
0:01:14.5]} 29... Be3 {[%clk 0:01:52.2]} 30. Qe8+ {[%clk 0:01:07.7]} 30... Kc7
{[%clk 0:01:49.3]} 31. Ba4 {[%clk 0:00:57.4]} 31... Bxf2+ {[%clk 0:01:31.4]} 32.
Kg2 {[%clk 0:00:53.8]} 32... Kb6 {[%clk 0:00:54.6]} 33. Qb5+ {[%clk 0:00:47.3]}
33... Kc7 {[%clk 0:00:52.9]} 34. Qc5+ {[%clk 0:00:45.3]} 34... Kd8 {[%clk
0:00:46.8]} 35. Qd6+ {[%clk 0:00:42.1]} 35... Kc8 {[%clk 0:00:43]} 36. Qd7+
{[%clk 0:00:39.7]} 36... Kb8 {[%clk 0:00:39.8]} 37. Qe8+ {[%clk 0:00:36.2]}
37... Kc7 {[%clk 0:00:37.1]} 38. Qd7+ {[%clk 0:00:32.5]} 38... Kb8 {[%clk
0:00:34.9]} 39. Bd1 {[%clk 0:00:19.4]} 39... Rf5 {[%clk 0:00:27.5]} 40. Be2
{[%clk 0:00:15.7]} 40... Be3 {[%clk 0:00:22.5]} 41. Rxf5 {[%clk 0:00:12.9]}
41... Qxf5 {[%clk 0:00:22.4]} 42. Qd6+ {[%clk 0:00:12]} 42... Kc8 {[%clk
0:00:19.6]} 43. Qc5+ {[%clk 0:00:09.3]} 43... Kd8 {[%clk 0:00:16.9]} 44. Qd6+
{[%clk 0:00:08.2]} 44... Ke8 {[%clk 0:00:14.7]} 45. Qb8+ {[%clk 0:00:06.8]}
45... Kf7 {[%clk 0:00:11.9]} 46. Qxb7+ {[%clk 0:00:06.7]} 46... Kg6 {[%clk
0:00:09.4]} 47. Qc7 {[%clk 0:00:05]} 47... Qf2+ {[%clk 0:00:07.9]} 48. Kh3
{[%clk 0:00:04.2]} 48... Qf5+ {[%clk 0:00:03.6]} 49. Bg4 {[%clk 0:00:02.3]} 1-0

[Event "Live Chess"]
[Site "Chess.com"]
[Date "2024.06.02"]
[Round "-"]
[White "WilliamofOrange16th"]
[Black "Bradfield133"]
[Result "1-0"]
[WhiteElo "1995"]
[BlackElo "1887"]
[TimeControl "300"]
[EndTime "22:45:48 PDT"]
[Termination "WilliamofOrange16th won by resignation"]

1. e4 {[%clk 0:04:57]} 1... c5 {[%clk 0:04:55.2]} 2. Nc3 {[%clk 0:04:55.5]} 2...
Nc6 {[%clk 0:04:53.3]} 3. g3 {[%clk 0:04:54.3]} 3... g6 {[%clk 0:04:51.5]} 4.
Bg2 {[%clk 0:04:53]} 4... Bg7 {[%clk 0:04:50.4]} 5. d3 {[%clk 0:04:51.5]} 5...
e5 {[%clk 0:04:49.2]} 6. Be3 {[%clk 0:04:50.7]} 6... d6 {[%clk 0:04:46]} 7. f4
{[%clk 0:04:49.5]} 7... Nd4 {[%clk 0:04:39.5]} 8. Nf3 {[%clk 0:04:33.8]} 8...
Ne7 {[%clk 0:04:36.7]} 9. O-O {[%clk 0:04:31.2]} 9... O-O {[%clk 0:04:34.3]} 10.
Ne2 {[%clk 0:04:25.3]} 10... Nxe2+ {[%clk 0:04:24.5]} 11. Qxe2 {[%clk
0:04:23.8]} 11... exf4 {[%clk 0:04:23.6]} 12. gxf4 {[%clk 0:03:44.2]} 12... Bxb2
{[%clk 0:04:20.4]} 13. Rab1 {[%clk 0:03:43.3]} 13... Bg7 {[%clk 0:04:18.1]} 14.
h4 {[%clk 0:03:41.6]} 14... Rb8 {[%clk 0:03:44.8]} 15. h5 {[%clk 0:03:39.7]}
15... f5 {[%clk 0:03:38.7]} 16. hxg6 {[%clk 0:03:32.5]} 16... hxg6 {[%clk
0:03:36.2]} 17. Ng5 {[%clk 0:03:19.5]} 17... Nc6 {[%clk 0:03:20.4]} 18. exf5
{[%clk 0:03:14.9]} 18... Bxf5 {[%clk 0:03:16.3]} 19. Bd5+ {[%clk 0:03:13.8]}
19... Kh8 {[%clk 0:03:08.1]} 20. Qh2+ {[%clk 0:03:12.8]} 1-0

[Event "Live Chess"]
[Site "Chess.com"]
[Date "2024.06.02"]
[Round "-"]
[White "Tatarinov_Maxim"]
[Black "McFim"]
[Result "1-0"]
[WhiteElo "2281"]
[BlackElo "1677"]
[TimeControl "300"]
[EndTime "22:45:50 PDT"]
[Termination "Tatarinov_Maxim won by resignation"]

1. Nf3 {[%clk 0:04:56.7]} 1... d5 {[%clk 0:04:58.7]} 2. g3 {[%clk 0:04:55.2]}
2... Nf6 {[%clk 0:04:57.1]} 3. Bg2 {[%clk 0:04:53.8]} 3... c6 {[%clk 0:04:56.7]}
4. c4 {[%clk 0:04:51.4]} 4... e6 {[%clk 0:04:54.9]} 5. O-O {[%clk 0:04:50.2]}
5... Be7 {[%clk 0:04:52.9]} 6. b3 {[%clk 0:04:48.7]} 6... O-O {[%clk 0:04:51.4]}
7. Bb2 {[%clk 0:04:47.9]} 7... Nbd7 {[%clk 0:04:48.1]} 8. d3 {[%clk 0:04:45.8]}
8... b6 {[%clk 0:04:45.8]} 9. Nbd2 {[%clk 0:04:43.4]} 9... Bb7 {[%clk
0:04:44.7]} 10. Rc1 {[%clk 0:04:41.7]} 10... c5 {[%clk 0:04:43.4]} 11. Rc2
{[%clk 0:04:40.2]} 11... d4 {[%clk 0:04:41.4]} 12. b4 {[%clk 0:04:38.7]} 12...
Bc6 {[%clk 0:04:35.5]} 13. b5 {[%clk 0:04:33.5]} 13... Bb7 {[%clk 0:04:33.9]}
14. a4 {[%clk 0:04:32.7]} 14... Qc7 {[%clk 0:04:31.8]} 15. a5 {[%clk 0:04:31.4]}
15... Rae8 {[%clk 0:04:28.6]} 16. a6 {[%clk 0:04:25.1]} 16... Ba8 {[%clk
0:04:27.1]} 17. Re1 {[%clk 0:04:20.2]} 17... h6 {[%clk 0:04:24.9]} 18. Nf1
{[%clk 0:04:17.6]} 18... Ne5 {[%clk 0:04:17.2]} 19. Nxe5 {[%clk 0:04:13.7]}
19... Qxe5 {[%clk 0:04:13.1]} 20. e3 {[%clk 0:04:11]} 20... Qd6 {[%clk
0:04:06.4]} 21. exd4 {[%clk 0:04:07.4]} 21... cxd4 {[%clk 0:04:05.1]} 22. Bxa8
{[%clk 0:04:00.1]} 22... Rxa8 {[%clk 0:04:03.1]} 23. Qf3 {[%clk 0:04:00]} 23...
e5 {[%clk 0:03:51.9]} 24. Rce2 {[%clk 0:03:54]} 24... Nd7 {[%clk 0:03:49.9]} 25.
Qc6 {[%clk 0:03:39.7]} 25... Rac8 {[%clk 0:03:34.6]} 26. Qxd6 {[%clk 0:03:30.1]}
26... Bxd6 {[%clk 0:03:32.8]} 27. Nd2 {[%clk 0:03:25.8]} 27... Nc5 {[%clk
0:03:30.4]} 28. Ba3 {[%clk 0:03:24.7]} 28... Nxd3 {[%clk 0:03:15.5]} 29. Bxd6
{[%clk 0:03:22.7]} 29... Nxe1 {[%clk 0:03:14]} 30. Bxf8 {[%clk 0:03:20.9]} 30...
Kxf8 {[%clk 0:03:06.4]} 31. Rxe1 {[%clk 0:03:18.5]} 31... f6 {[%clk 0:03:03.3]}
32. f4 {[%clk 0:03:13]} 32... Rc5 {[%clk 0:02:58.8]} 33. fxe5 {[%clk 0:03:11.5]}
33... fxe5 {[%clk 0:02:57.6]} 34. Kg2 {[%clk 0:03:09.1]} 34... Kf7 {[%clk
0:02:54.4]} 35. Kf3 {[%clk 0:03:08.4]} 35... Ke6 {[%clk 0:02:49.3]} 36. Ke4
{[%clk 0:03:08.3]} 36... g6 {[%clk 0:02:47.2]} 37. Rf1 {[%clk 0:03:05.3]} 37...
Rc8 {[%clk 0:02:43]} 38. Rf3 {[%clk 0:02:55.5]} 1-0

[Event "Live Chess"]
[Site "Chess.com"]
[Date "2024.06.02"]
[Round "-"]
[White "AlanBstard10"]
[Black "Nikaru_Hikamura"]
[Result "0-1"]
[WhiteElo "1160"]
[BlackElo "1865"]
[TimeControl "300"]
[EndTime "22:47:32 PDT"]
[Termination "Nikaru_Hikamura won by checkmate"]

1. b4 {[%clk 0:04:57.9]} 1... e5 {[%clk 0:04:57]} 2. Bb2 {[%clk 0:04:57]} 2...
Bxb4 {[%clk 0:04:56]} 3. Bxe5 {[%clk 0:04:55]} 3... Nf6 {[%clk 0:04:55.1]} 4. c3
{[%clk 0:04:53.1]} 4... Be7 {[%clk 0:04:53.1]} 5. Nf3 {[%clk 0:04:47.2]} 5...
Nc6 {[%clk 0:04:49.6]} 6. Bxf6 {[%clk 0:04:44.6]} 6... Bxf6 {[%clk 0:04:48.2]}
7. e3 {[%clk 0:04:44.3]} 7... d5 {[%clk 0:04:41.5]} 8. Be2 {[%clk 0:04:43.4]}
8... O-O {[%clk 0:04:39.5]} 9. d4 {[%clk 0:04:42.3]} 9... Bf5 {[%clk 0:04:35.1]}
10. Nbd2 {[%clk 0:04:40.4]} 10... Re8 {[%clk 0:04:33.4]} 11. O-O {[%clk
0:04:38.9]} 11... h6 {[%clk 0:04:26.5]} 12. c4 {[%clk 0:04:37.9]} 12... dxc4
{[%clk 0:04:00.5]} 13. Nxc4 {[%clk 0:04:36.6]} 13... Ne7 {[%clk 0:03:51.1]} 14.
Nce5 {[%clk 0:04:33.5]} 14... Nc8 {[%clk 0:03:48.2]} 15. Bd3 {[%clk 0:04:27.7]}
15... Bxd3 {[%clk 0:03:45]} 16. Qxd3 {[%clk 0:04:26.7]} 16... Bxe5 {[%clk
0:03:41.7]} 17. Nxe5 {[%clk 0:04:24.9]} 17... Rxe5 {[%clk 0:03:40.4]} 18. f4
{[%clk 0:04:19.2]} 18... Re7 {[%clk 0:03:36.1]} 19. Rfd1 {[%clk 0:04:11.3]}
19... Nd6 {[%clk 0:03:33.5]} 20. e4 {[%clk 0:04:10.1]} 20... Nxe4 {[%clk
0:03:31.1]} 21. Re1 {[%clk 0:04:06.8]} 21... Nf6 {[%clk 0:03:26.8]} 22. Rec1
{[%clk 0:04:02]} 22... c6 {[%clk 0:03:21.7]} 23. Qb3 {[%clk 0:03:59.7]} 23...
Qd5 {[%clk 0:03:19.7]} 24. Qd3 {[%clk 0:03:51.8]} 24... Rd8 {[%clk 0:03:17.4]}
25. h3 {[%clk 0:03:37.8]} 25... Re4 {[%clk 0:03:14.2]} 26. Qa3 {[%clk
0:03:32.3]} 26... Qxd4+ {[%clk 0:03:12]} 27. Kh2 {[%clk 0:03:29.7]} 27... Re2
{[%clk 0:03:08.5]} 28. Rd1 {[%clk 0:03:22.9]} 28... Qxf4+ {[%clk 0:03:06.7]} 29.
Kg1 {[%clk 0:03:20.4]} 29... Qf2+ {[%clk 0:03:05.3]} 30. Kh1 {[%clk 0:03:18.2]}
30... Qxg2# {[%clk 0:03:05.2]} 0-1

[Event "Live Chess"]
[Site "Chess.com"]
[Date "2024.06.02"]
[Round "-"]
[White "KeithArkell"]
[Black "febray_27"]
[Result "1-0"]
[WhiteElo "2419"]
[BlackElo "2043"]
[TimeControl "300"]
[EndTime "22:47:48 PDT"]
[Termination "KeithArkell won by resignation"]

1. d4 {[%clk 0:04:56.8]} 1... Nf6 {[%clk 0:04:58.4]} 2. Nf3 {[%clk 0:04:56]}
2... g6 {[%clk 0:04:57.6]} 3. c4 {[%clk 0:04:55.7]} 3... Bg7 {[%clk 0:04:57.1]}
4. g3 {[%clk 0:04:54.2]} 4... d5 {[%clk 0:04:56.2]} 5. cxd5 {[%clk 0:04:53]}
5... Nxd5 {[%clk 0:04:55.7]} 6. Nc3 {[%clk 0:04:52.6]} 6... Nxc3 {[%clk
0:04:54.2]} 7. bxc3 {[%clk 0:04:51.7]} 7... O-O {[%clk 0:04:54.1]} 8. Bg2 {[%clk
0:04:51.1]} 8... c6 {[%clk 0:04:52.7]} 9. O-O {[%clk 0:04:50.3]} 9... Na6 {[%clk
0:04:51]} 10. Bf4 {[%clk 0:04:48.3]} 10... Nc7 {[%clk 0:04:49.6]} 11. Qd2 {[%clk
0:04:47.6]} 11... e6 {[%clk 0:04:46.5]} 12. Bh6 {[%clk 0:04:46.5]} 12... Nd5
{[%clk 0:04:44.9]} 13. Bxg7 {[%clk 0:04:44.1]} 13... Kxg7 {[%clk 0:04:44]} 14.
Ne5 {[%clk 0:04:42.7]} 14... f6 {[%clk 0:04:33.3]} 15. Nc4 {[%clk 0:04:37.2]}
15... b5 {[%clk 0:04:25.9]} 16. Ne3 {[%clk 0:04:34.3]} 16... Bb7 {[%clk
0:04:21.6]} 17. a4 {[%clk 0:04:33.3]} 17... a6 {[%clk 0:04:19.7]} 18. Rfb1
{[%clk 0:04:31.6]} 18... Qe7 {[%clk 0:04:05.8]} 19. c4 {[%clk 0:04:24.1]} 19...
Nxe3 {[%clk 0:03:39.9]} 20. Qxe3 {[%clk 0:04:18.6]} 20... b4 {[%clk 0:03:36.9]}
21. a5 {[%clk 0:04:16.2]} 21... Rab8 {[%clk 0:03:27.2]} 22. c5 {[%clk
0:04:06.2]} 22... Rfd8 {[%clk 0:03:22]} 23. Rxb4 {[%clk 0:04:03.4]} 23... Ba8
{[%clk 0:03:14.2]} 24. Rb6 {[%clk 0:04:02.3]} 24... e5 {[%clk 0:03:00]} 25. dxe5
{[%clk 0:03:56.9]} 25... Qxe5 {[%clk 0:02:59.3]} 26. Qxe5 {[%clk 0:03:54.4]}
26... fxe5 {[%clk 0:02:59.2]} 27. Rab1 {[%clk 0:03:46]} 1-0

[Event "Live Chess"]
[Site "Chess.com"]
[Date "2024.06.02"]
[Round "-"]
[White "Greenbecker"]
[Black "Duke_of_Bebington"]
[Result "1/2-1/2"]
[WhiteElo "1732"]
[BlackElo "1665"]
[TimeControl "300"]
[EndTime "22:48:23 PDT"]
[Termination "Game drawn by agreement"]

1. e4 {[%clk 0:04:57]} 1... e5 {[%clk 0:04:58.7]} 2. Nf3 {[%clk 0:04:54.6]} 2...
Nf6 {[%clk 0:04:58]} 3. Nc3 {[%clk 0:04:46.9]} 3... Nc6 {[%clk 0:04:56.6]} 4.
Bb5 {[%clk 0:04:40.7]} 4... Nd4 {[%clk 0:04:55.3]} 5. Bc4 {[%clk 0:04:37.3]}
5... Nxe4 {[%clk 0:04:47.8]} 6. Nxe4 {[%clk 0:04:15.4]} 6... d5 {[%clk
0:04:45.6]} 7. Nxe5 {[%clk 0:03:59]} 7... dxc4 {[%clk 0:04:39.4]} 8. O-O {[%clk
0:03:41.3]} 8... b5 {[%clk 0:04:26.7]} 9. c3 {[%clk 0:03:36.6]} 9... Ne6 {[%clk
0:04:18.1]} 10. Qf3 {[%clk 0:03:31.3]} 10... f6 {[%clk 0:03:59.7]} 11. Qh5+
{[%clk 0:03:14.9]} 11... g6 {[%clk 0:03:45.4]} 12. Nxg6 {[%clk 0:03:13.1]} 12...
Ng7 {[%clk 0:03:39.2]} 13. Qxb5+ {[%clk 0:02:51.6]} 13... Bd7 {[%clk 0:03:32.4]}
14. Qxc4 {[%clk 0:02:26.7]} 14... hxg6 {[%clk 0:03:31.1]} 15. Re1 {[%clk
0:02:25.4]} 15... Be7 {[%clk 0:03:26.9]} 16. Nxf6+ {[%clk 0:02:23]} 16... Kf8
{[%clk 0:03:26.2]} 17. Nxd7+ {[%clk 0:02:08.7]} 17... Qxd7 {[%clk 0:03:23.6]}
18. Qf4+ {[%clk 0:02:05]} 18... Nf5 {[%clk 0:03:20.2]} 19. h3 {[%clk 0:01:48.1]}
19... Kg7 {[%clk 0:03:13.5]} 20. d4 {[%clk 0:01:40.4]} 20... Bd6 {[%clk
0:03:08.1]} 21. Qg4 {[%clk 0:01:35.5]} 21... Rae8 {[%clk 0:03:00]} 22. Rxe8
{[%clk 0:01:31.1]} 22... Rxe8 {[%clk 0:02:57.6]} 23. Bg5 {[%clk 0:01:28.9]}
23... Re6 {[%clk 0:02:47.3]} 24. d5 {[%clk 0:01:17.2]} 24... Re5 {[%clk
0:02:43.2]} 25. c4 {[%clk 0:01:13.8]} 25... Qe8 {[%clk 0:02:39.5]} 26. g3 {[%clk
0:01:00.7]} 26... Re4 {[%clk 0:02:28.5]} 27. Qf3 {[%clk 0:00:49]} 27... Re1+
{[%clk 0:02:15.7]} 28. Rxe1 {[%clk 0:00:46.5]} 28... Qxe1+ {[%clk 0:02:14.7]}
29. Kg2 {[%clk 0:00:46]} 29... Qe5 {[%clk 0:02:08.3]} 30. Bf4 {[%clk 0:00:39.9]}
30... Qxb2 {[%clk 0:02:02.8]} 31. Bxd6 {[%clk 0:00:37.8]} 31... cxd6 {[%clk
0:02:02.4]} 32. Qe4 {[%clk 0:00:30.4]} 32... Qxa2 {[%clk 0:01:54.1]} 33. g4
{[%clk 0:00:26.5]} 33... Nh4+ {[%clk 0:01:34.5]} 34. Kg3 {[%clk 0:00:21.4]}
34... Kh6 {[%clk 0:01:28.5]} 35. g5+ {[%clk 0:00:15.6]} 35... Kg7 {[%clk
0:01:26.2]} 36. Qxh4 {[%clk 0:00:12.5]} 36... Qb3+ {[%clk 0:01:24.4]} 37. Kg2
{[%clk 0:00:11]} 1/2-1/2

[Event "Live Chess"]
[Site "Chess.com"]
[Date "2024.06.02"]
[Round "-"]
[White "Dhaydon19"]
[Black "EPotapov05"]
[Result "1-0"]
[WhiteElo "2681"]
[BlackElo "1791"]
[TimeControl "300"]
[EndTime "22:48:53 PDT"]
[Termination "Dhaydon19 won by resignation"]

1. d4 {[%clk 0:04:57.6]} 1... d5 {[%clk 0:04:56.9]} 2. Nf3 {[%clk 0:04:56.9]}
2... Nf6 {[%clk 0:04:55.1]} 3. g3 {[%clk 0:04:56.5]} 3... Bf5 {[%clk 0:04:53.8]}
4. Bg2 {[%clk 0:04:55.9]} 4... c6 {[%clk 0:04:53]} 5. c3 {[%clk 0:04:55.5]} 5...
h6 {[%clk 0:04:51.6]} 6. O-O {[%clk 0:04:55.2]} 6... e6 {[%clk 0:04:50.8]} 7.
Nbd2 {[%clk 0:04:54.9]} 7... Nbd7 {[%clk 0:04:49]} 8. Re1 {[%clk 0:04:54.5]}
8... Be7 {[%clk 0:04:48.1]} 9. Qb3 {[%clk 0:04:53.1]} 9... Qb6 {[%clk
0:04:46.4]} 10. Nh4 {[%clk 0:04:51.7]} 10... Bh7 {[%clk 0:04:44.4]} 11. Nhf3
{[%clk 0:04:51.2]} 11... O-O {[%clk 0:04:42.1]} 12. Qd1 {[%clk 0:04:49.3]} 12...
Rfe8 {[%clk 0:04:39.4]} 13. e3 {[%clk 0:04:48.9]} 13... Ne4 {[%clk 0:04:36.9]}
14. Nxe4 {[%clk 0:04:47.3]} 14... Bxe4 {[%clk 0:04:35]} 15. Nd2 {[%clk 0:04:47]}
15... Bxg2 {[%clk 0:04:32.7]} 16. Kxg2 {[%clk 0:04:46.7]} 16... e5 {[%clk
0:04:26.7]} 17. Nf3 {[%clk 0:04:40.8]} 17... exd4 {[%clk 0:04:25.3]} 18. exd4
{[%clk 0:04:38.4]} 18... Bf6 {[%clk 0:04:19.9]} 19. Rxe8+ {[%clk 0:04:35.7]}
19... Rxe8 {[%clk 0:04:17.8]} 20. Qc2 {[%clk 0:04:35.4]} 20... Nf8 {[%clk
0:04:09.1]} 21. Be3 {[%clk 0:04:32.1]} 21... Qc7 {[%clk 0:03:59.1]} 22. h4
{[%clk 0:04:30.6]} 22... Qb6 {[%clk 0:03:57.6]} 23. Re1 {[%clk 0:04:29.1]} 23...
Re6 {[%clk 0:03:55.1]} 24. h5 {[%clk 0:04:26.9]} 24... Qc7 {[%clk 0:03:52.1]}
25. Qf5 {[%clk 0:04:21.4]} 25... Qe7 {[%clk 0:03:46.3]} 26. g4 {[%clk
0:04:15.7]} 26... Nh7 {[%clk 0:03:40.7]} 27. Bd2 {[%clk 0:04:07.4]} 27... Rxe1
{[%clk 0:03:36.8]} 28. Bxe1 {[%clk 0:04:04.7]} 28... Ng5 {[%clk 0:03:28.3]} 29.
Ne5 {[%clk 0:03:47]} 29... Bxe5 {[%clk 0:03:23.5]} 30. dxe5 {[%clk 0:03:44.7]}
30... Qe6 {[%clk 0:03:20.2]} 31. Bd2 {[%clk 0:03:36.7]} 31... Qxf5 {[%clk
0:03:11.9]} 32. gxf5 {[%clk 0:03:34.5]} 32... Nh7 {[%clk 0:02:55]} 33. Be3
{[%clk 0:03:31.2]} 33... a6 {[%clk 0:02:49.9]} 34. Kf3 {[%clk 0:03:28.6]} 34...
Kf8 {[%clk 0:02:48.8]} 35. Ke2 {[%clk 0:03:26.1]} 35... Ke7 {[%clk 0:02:46]} 36.
Kd3 {[%clk 0:03:24.2]} 36... f6 {[%clk 0:02:42.2]} 37. e6 {[%clk 0:03:21]} 37...
Kd6 {[%clk 0:02:35.1]} 38. Bf4+ {[%clk 0:03:17]} 38... Ke7 {[%clk 0:02:31.9]}
39. Kd4 {[%clk 0:03:16]} 39... b6 {[%clk 0:02:29]} 40. Bc7 {[%clk 0:03:12.6]}
40... b5 {[%clk 0:02:21.2]} 41. f4 {[%clk 0:03:05.6]} 41... Nf8 {[%clk
0:02:18.9]} 42. Kc5 {[%clk 0:03:03.7]} 42... Nxe6+ {[%clk 0:02:11.7]} 43. fxe6
{[%clk 0:03:02.4]} 43... Kxe6 {[%clk 0:02:11.3]} 44. Kxc6 {[%clk 0:03:01.7]}
44... Kf5 {[%clk 0:02:10.5]} 45. Kxd5 {[%clk 0:02:57.8]} 45... Kg4 {[%clk
0:02:09.9]} 46. Ke6 {[%clk 0:02:55.5]} 46... Kxh5 {[%clk 0:02:08.1]} 47. f5
{[%clk 0:02:54.6]} 47... Kg4 {[%clk 0:02:04.5]} 48. b3 {[%clk 0:02:52.9]} 48...
h5 {[%clk 0:02:03]} 49. c4 {[%clk 0:02:51.2]} 49... bxc4 {[%clk 0:02:01.2]} 50.
bxc4 {[%clk 0:02:50.9]} 50... Kg5 {[%clk 0:01:54]} 51. c5 {[%clk 0:02:49.6]}
51... g6 {[%clk 0:01:53.5]} 52. fxg6 {[%clk 0:02:48.4]} 52... Kxg6 {[%clk
0:01:52.7]} 53. Bd6 {[%clk 0:02:47.2]} 53... f5 {[%clk 0:01:49.3]} 54. c6 {[%clk
0:02:46.9]} 1-0

[Event "Live Chess"]
[Site "Chess.com"]
[Date "2024.06.02"]
[Round "-"]
[White "matt1979"]
[Black "elephantgerrald"]
[Result "1-0"]
[WhiteElo "1377"]
[BlackElo "807"]
[TimeControl "300"]
[EndTime "22:49:03 PDT"]
[Termination "matt1979 won by checkmate"]

1. f4 {[%clk 0:04:58.7]} 1... d5 {[%clk 0:04:58.9]} 2. e3 {[%clk 0:04:57]} 2...
Nc6 {[%clk 0:04:57.9]} 3. Bb5 {[%clk 0:04:55.1]} 3... Bd7 {[%clk 0:04:56.4]} 4.
Nf3 {[%clk 0:04:53.7]} 4... e6 {[%clk 0:04:55.7]} 5. b3 {[%clk 0:04:47.8]} 5...
Nge7 {[%clk 0:04:54.6]} 6. Bb2 {[%clk 0:04:46.6]} 6... f6 {[%clk 0:04:52.4]} 7.
O-O {[%clk 0:04:43.3]} 7... a6 {[%clk 0:04:51.3]} 8. Be2 {[%clk 0:04:36.9]} 8...
Nf5 {[%clk 0:04:46.8]} 9. Qe1 {[%clk 0:04:25.3]} 9... Bd6 {[%clk 0:04:45]} 10.
Nh4 {[%clk 0:04:17.7]} 10... O-O {[%clk 0:04:40.8]} 11. Nxf5 {[%clk 0:04:15.4]}
11... exf5 {[%clk 0:04:39.4]} 12. Qh4 {[%clk 0:04:11.3]} 12... Be8 {[%clk
0:04:36]} 13. Bh5 {[%clk 0:04:01.2]} 13... Bxh5 {[%clk 0:04:34.2]} 14. Qxh5
{[%clk 0:03:59.7]} 14... g6 {[%clk 0:04:30.7]} 15. Qh4 {[%clk 0:03:53.3]} 15...
Bb4 {[%clk 0:04:27.7]} 16. c3 {[%clk 0:03:33.6]} 16... Be7 {[%clk 0:04:19.2]}
17. d4 {[%clk 0:03:18.6]} 17... b5 {[%clk 0:04:16.4]} 18. Rf3 {[%clk 0:03:10.3]}
18... b4 {[%clk 0:04:05.9]} 19. c4 {[%clk 0:03:06.3]} 19... dxc4 {[%clk
0:04:03.6]} 20. bxc4 {[%clk 0:03:04.6]} 20... Na5 {[%clk 0:03:55.7]} 21. Nd2
{[%clk 0:02:56.9]} 21... c5 {[%clk 0:03:52.2]} 22. d5 {[%clk 0:02:54]} 22...
Nxc4 {[%clk 0:03:47.3]} 23. Nxc4 {[%clk 0:02:51.7]} 23... g5 {[%clk 0:03:43.9]}
24. fxg5 {[%clk 0:02:45.5]} 24... fxg5 {[%clk 0:03:43]} 25. Qh6 {[%clk
0:02:33.3]} 25... Rf7 {[%clk 0:03:38.4]} 26. Ne5 {[%clk 0:02:23.4]} 26... Rf6
{[%clk 0:03:34.6]} 27. Qxg5+ {[%clk 0:02:18.7]} 27... Rg6 {[%clk 0:03:32.1]} 28.
Qxf5 {[%clk 0:02:08.5]} 28... Qf8 {[%clk 0:03:20.7]} 29. Nxg6 {[%clk 0:02:00.8]}
29... Qxf5 {[%clk 0:03:17.2]} 30. Nxe7+ {[%clk 0:01:58]} 30... Kf7 {[%clk
0:03:13.6]} 31. Nxf5 {[%clk 0:01:55.7]} 31... Kg6 {[%clk 0:03:11.3]} 32. Raf1
{[%clk 0:01:49.5]} 32... Re8 {[%clk 0:03:06.4]} 33. Nh4+ {[%clk 0:01:46.6]}
33... Kh5 {[%clk 0:03:04.5]} 34. Nf5 {[%clk 0:01:39.4]} 34... Kg5 {[%clk
0:03:01.7]} 35. d6 {[%clk 0:01:34.2]} 35... Rd8 {[%clk 0:02:59.8]} 36. Rg3+
{[%clk 0:01:31.4]} 36... Kh5 {[%clk 0:02:58.3]} 37. Rf4 {[%clk 0:01:27.1]} 37...
h6 {[%clk 0:02:55.4]} 38. Rh4# {[%clk 0:01:25]} 1-0

[Event "Live Chess"]
[Site "Chess.com"]
[Date "2024.06.02"]
[Round "-"]
[White "jk0110"]
[Black "Tatarinov_Maxim"]
[Result "0-1"]
[WhiteElo "1235"]
[BlackElo "2281"]
[TimeControl "300"]
[EndTime "22:49:08 PDT"]
[Termination "Tatarinov_Maxim won by resignation"]

1. e4 {[%clk 0:04:57.2]} 1... c5 {[%clk 0:04:58.4]} 2. d4 {[%clk 0:04:55.6]}
2... cxd4 {[%clk 0:04:56.9]} 3. c3 {[%clk 0:04:53.6]} 3... dxc3 {[%clk
0:04:56.1]} 4. Nxc3 {[%clk 0:04:53.5]} 4... Nc6 {[%clk 0:04:54.5]} 5. Nf3 {[%clk
0:04:51.8]} 5... e6 {[%clk 0:04:53.9]} 6. Bc4 {[%clk 0:04:50.6]} 6... d6 {[%clk
0:04:53]} 7. Bf4 {[%clk 0:04:38.3]} 7... Nf6 {[%clk 0:04:49.2]} 8. O-O {[%clk
0:04:31.8]} 8... Be7 {[%clk 0:04:48.4]} 9. Rc1 {[%clk 0:04:21.1]} 9... O-O
{[%clk 0:04:46.2]} 10. Nb5 {[%clk 0:04:19.6]} 10... e5 {[%clk 0:04:40.1]} 11.
Bg5 {[%clk 0:04:14.2]} 11... a6 {[%clk 0:04:39.4]} 12. Nc3 {[%clk 0:04:07.1]}
12... Bg4 {[%clk 0:04:38.2]} 13. h3 {[%clk 0:04:02.3]} 13... Bxf3 {[%clk
0:04:36.2]} 14. Qxf3 {[%clk 0:04:00.7]} 14... Nd4 {[%clk 0:04:35.5]} 15. Qg3
{[%clk 0:03:53.6]} 15... Rc8 {[%clk 0:04:30.2]} 16. Bb3 {[%clk 0:03:48.9]} 16...
Rxc3 {[%clk 0:04:28.1]} 17. bxc3 {[%clk 0:03:47.3]} 17... Ne2+ {[%clk
0:04:26.9]} 0-1